bitfinex-derivatives/quotes_SOLF0:USTF0_20250505
["timestamp","ask_amount","ask_price","bid_price","bid_amount"]
[1746435821779,6.8258,146.5,146.46,3.28600567]
[1746435821983,27.28600567,146.51,146.46,3.28600567]
[1746435822983,6.8261,146.49,146.46,10.11310567]
[1746435823183,27.28600567,146.51,146.45,3.28600567]
[1746435823784,6.8268,146.48,146.45,10.11370567]
[1746435824087,27.28600567,146.51,146.45,3.28600567]
[1746435824781,27.28600567,146.51,146.44,2.1449]
[1746435824981,27.28600567,146.51,146.44,5.43090567]
[1746435825483,6.8267,146.48,146.45,6.8276]
[1746435825983,6.827,146.47,146.45,6.8276]
[1746435827483,6.8277,146.46,146.43,75.28739193]
[1746435828180,6.8277,146.46,146.43,82.11599193]
[1746435829578,6.8277,146.46,146.43,75.28739193]
[1746435829785,6.8277,146.46,146.44,6.8283]
[1746435830085,6.8272,146.47,146.44,6.8283]
[1746435834887,6.8267,146.48,146.44,6.8283]
[1746435835284,6.8267,146.48,146.45,6.8279]
[1746435837390,1.9409,146.5,146.44,0.5]
[1746435837391,6.8262,146.49,146.46,6.8272]
[1746435837691,6.8262,146.49,146.44,0.5]
[1746435838191,6.8262,146.49,146.45,6.8276]
[1746435840992,6.8262,146.49,146.46,6.8273]
[1746435850898,6.8262,146.49,146.47,6.8269]
[1746435853097,6.8262,146.49,146.46,6.8272]
[1746435856401,6.8262,146.49,146.44,3.78971986]
[1746435857202,6.8266,146.48,146.46,6.8272]
[1746435860698,6.8263,146.49,146.46,6.8272]
[1746435861298,6.8265,146.48,146.46,6.8272]
[1746435861800,6.8262,146.49,146.46,6.8272]
[1746435862596,6.8265,146.48,146.46,6.8272]
[1746435863299,6.8265,146.48,146.45,6.8277]
[1746435863499,6.8265,146.48,146.44,0.5]
[1746435865201,6.8265,146.48,146.46,6.8274]
[1746435869103,6.8274,146.47,146.44,0.5]
[1746435869402,3.28971986,146.48,146.44,0.5]
[1746435869598,3.28971986,146.48,146.44,7.3281]
[1746435869897,6.8272,146.47,146.44,7.3281]
[1746435873204,6.8272,146.47,146.45,6.8278]
[1746435873701,6.8272,146.47,146.44,7.328]
[1746435877010,3.28971986,146.48,146.44,0.5]
[1746435880214,6.8279,146.45,146.44,0.5]
[1746435883913,3.28971986,146.46,146.44,0.5]
[1746435884412,30.8072,146.47,146.44,7.3281]
[1746435884614,23.98,146.47,146.44,0.5]
[1746435885015,6.8276,146.46,146.44,0.5]
[1746435887120,30.8072,146.47,146.44,7.3283]
[1746435892728,30.8072,146.47,146.45,6.8278]
[1746435892930,30.8072,146.47,146.44,0.5]
[1746435893227,30.8072,146.47,146.44,7.3281]
[1746435897941,6.8276,146.46,146.44,0.5]
[1746435898142,23.98,146.47,146.44,0.5]
[1746435898442,30.8072,146.47,146.44,7.3281]
[1746435900642,6.8275,146.46,146.44,0.5]
[1746435901544,6.8279,146.45,146.44,0.5]
[1746435914253,23.98,146.47,146.44,0.5]
[1746435915258,6.8279,146.45,146.44,0.5]
[1746435943979,6.8293,146.42,146.41,11.11]
[1746435958492,6.8291,146.43,146.41,11.11]
[1746435959992,6.8291,146.43,146.41,17.9397]
[1746435960491,10.11831986,146.44,146.41,17.9397]
[1746435960995,6.8291,146.43,146.41,11.11]
[1746435963191,6.8286,146.44,146.41,21.22921986]
[1746435965802,6.8286,146.44,146.41,17.9395]
[1746435966096,6.8286,146.44,146.41,18.7195]
[1746435967292,6.8281,146.45,146.42,6.829]
[1746435968602,6.8281,146.45,146.41,11.89]
[1746435968795,6.8285,146.44,146.41,11.89]
[1746435969899,6.8289,146.43,146.41,11.89]
[1746435975203,3.28971986,146.46,146.41,11.89]
[1746435976205,6.8293,146.43,146.41,11.89]
[1746435976903,6.8293,146.42,146.41,11.89]
[1746435978908,6.8293,146.42,146.41,11.11]
[1746435979701,6.8291,146.43,146.41,11.11]
[1746435980101,6.8291,146.43,146.41,17.9397]
[1746435980303,6.8285,146.44,146.41,17.9397]
[1746435980502,3.28971986,146.46,146.41,0.5]
[1746435980803,6.8285,146.44,146.41,7.3296]
[1746435981299,3.28971986,146.46,146.41,7.3296]
[1746435981504,6.8288,146.43,146.41,0.5]
[1746435981704,6.8288,146.43,146.41,1.28]
[1746435984003,6.8291,146.43,146.41,1.28]
[1746435991916,6.8293,146.42,146.41,1.28]
[1746436002420,3.28971986,146.46,146.41,1.28]
[1746436003619,3.28971986,146.46,146.41,8.1095]
[1746436003823,23.86,146.47,146.41,8.1095]
[1746436004029,23.86,146.47,146.42,3.28971986]
[1746436004324,23.86,146.47,146.42,10.11881986]
[1746436005028,6.8276,146.46,146.42,10.11881986]
[1746436005826,23.86,146.47,146.43,6.8287]
[1746436006525,6.8276,146.46,146.43,6.8287]
[1746436006723,23.86,146.47,146.44,6.8282]
[1746436007120,30.6872,146.47,146.44,6.8282]
[1746436007330,23.86,146.47,146.42,3.28971986]
[1746436007725,23.86,146.47,146.45,6.8278]
[1746436008928,30.687,146.47,146.45,6.8278]
[1746436009724,23.86,146.47,146.45,6.8276]
[1746436009929,6.8267,146.48,146.44,3.28971986]
[1746436010530,6.8267,146.48,146.45,6.8274]
[1746436010930,6.827,146.47,146.45,6.8274]
[1746436011129,29.18111986,146.5,146.45,0.78]
[1746436011427,6.8272,146.47,146.45,0.78]
[1746436019324,23.86,146.5,146.45,0.78]
[1746436019532,23.86,146.5,146.46,3.28971986]
[1746436020629,30.6857,146.5,146.47,6.8267]
[1746436020823,30.6857,146.5,146.46,3.28971986]
[1746436021129,30.6857,146.5,146.47,6.8269]
[1746436024534,23.86,146.5,146.48,6.8264]
[1746436025335,30.6856,146.5,146.48,6.8264]
[1746436026529,7.24781986,146.53,146.48,3.28971986]
[1746436026727,23.84,146.53,146.48,3.28971986]
[1746436026927,23.84,146.53,146.5,3.28971986]
[1746436028330,23.84,146.53,146.51,6.8249]
[1746436031134,23.84,146.53,146.52,6.8246]
[1746436031335,6.8235,146.55,146.5,3.28971986]
[1746436031730,23.84,146.56,146.52,3.28971986]
[1746436032033,30.663,146.56,146.52,3.28971986]
[1746436032636,30.663,146.56,146.53,6.8239]
[1746436032934,6.8233,146.55,146.53,6.8239]
[1746436033436,30.6629,146.56,146.53,6.8239]
[1746436036940,30.6629,146.56,146.53,7.6039]
[1746436037741,23.84,146.56,146.54,6.8237]
[1746436038242,30.6628,146.56,146.53,18.5739]
[1746436038636,30.6628,146.56,146.53,11.75]
[1746436038834,23.84,146.56,146.54,6.8237]
[1746436039037,25.917,146.59,146.54,3.28971986]
[1746436039342,6.8222,146.58,146.55,6.823]
[1746436040236,23.84,146.59,146.54,3.28971986]
[1746436040443,23.84,146.59,146.56,3.28971986]
[1746436040842,23.84,146.59,146.56,10.11221986]
[1746436041340,23.84,146.59,146.56,3.28971986]
[1746436041641,30.6616,146.59,146.56,10.11241986]
[1746436042345,6.8218,146.58,146.56,3.28971986]
[1746436044344,6.8218,146.58,146.56,10.11241986]
[1746436044643,6.8218,146.58,146.56,3.28971986]
[1746436048643,6.8218,146.58,146.56,10.11241986]
[1746436049348,6.8215,146.59,146.57,6.8223]
[1746436050766,6.8215,146.59,146.56,10.11221986]
[1746436051256,1.937,146.61,146.56,10.11221986]
[1746436051761,6.8216,146.59,146.56,10.11221986]
[1746436052359,1.937,146.61,146.58,10.11121986]
[1746436052360,6.8206,146.61,146.58,10.11121986]
[1746436052666,23.84,146.62,146.58,3.28971986]
[1746436052863,6.8207,146.61,146.58,10.11131986]
[1746436054465,6.8207,146.61,146.59,6.8213]
[1746436054863,6.8207,146.61,146.58,3.28971986]
[1746436055265,6.8207,146.61,146.58,10.11131986]
[1746436067869,6.8207,146.61,146.59,6.8213]
[1746436069067,6.8207,146.61,146.58,10.11131986]
[1746436070168,6.8207,146.61,146.59,6.8213]
[1746436070469,23.82,146.64,146.58,3.28971986]
[1746436070672,23.82,146.64,146.6,3.28971986]
[1746436070969,25.8803,146.67,146.62,10.10971986]
[1746436071171,23.82,146.67,146.62,10.10971986]
[1746436071372,23.82,146.67,146.63,6.8192]
[1746436071768,23.82,146.67,146.64,3.28971986]
[1746436071963,30.638,146.67,146.64,10.10851986]
[1746436073071,30.638,146.67,146.64,3.28971986]
[1746436073366,23.82,146.67,146.62,3.28971986]
[1746436073968,23.82,146.67,146.63,0.78]
[1746436074168,6.8188,146.65,146.63,0.78]
[1746436074873,6.819,146.64,146.63,0.78]
[1746436076173,6.8187,146.65,146.63,0.78]
[1746436077078,6.819,146.64,146.63,0.78]
[1746436078678,6.8188,146.65,146.63,0.78]
[1746436079177,6.8188,146.65,146.63,7.5994]
[1746436079373,6.819,146.64,146.63,0.78]
[1746436079672,23.82,146.68,146.63,0.78]
[1746436080377,23.82,146.68,146.63,7.5992]
[1746436080582,23.82,146.68,146.63,0.78]
[1746436080881,6.8183,146.66,146.64,6.819]
[1746436081479,6.8183,146.66,146.63,7.5992]
[1746436082080,6.8187,146.65,146.63,0.78]
[1746436082680,6.8187,146.65,146.63,7.5995]
[1746436084083,6.8183,146.66,146.63,7.5995]
[1746436084282,6.8183,146.66,146.64,6.819]
[1746436084684,6.8183,146.66,146.63,0.78]
[1746436084884,6.8183,146.66,146.63,7.5993]
[1746436085683,6.8186,146.65,146.63,0.78]
[1746436085883,6.8186,146.65,146.63,4.06971986]
[1746436086087,23.82,146.68,146.63,4.06971986]
[1746436086386,6.8183,146.66,146.63,10.88901986]
[1746436086685,6.8183,146.66,146.64,3.28971986]
[1746436090085,6.8186,146.65,146.64,3.28971986]
[1746436090790,6.8186,146.65,146.63,9.01]
[1746436090791,6.819,146.64,146.63,9.01]
[1746436094991,6.8179,146.67,146.63,9.01]
[1746436095188,3.28971986,146.76,146.65,3.28971986]
[1746436095485,51.24802287,146.78,146.72,3.28971986]
[1746436095685,6.8135,146.76,146.72,3.28971986]
[1746436095983,51.24802287,146.78,146.72,3.28971986]
[1746436096592,27.08971986,146.78,146.72,3.28971986]
[1746436096891,6.8139,146.75,146.72,3.28971986]
[1746436097186,27.08971986,146.78,146.72,3.28971986]
[1746436097694,23.8,146.78,146.7,6.8162]
[1746436098588,6.8149,146.73,146.7,6.8162]
[1746436099299,23.8,146.78,146.69,23.8]
[1746436099587,28.92129299,146.78,146.69,23.8]
[1746436099794,6.8166,146.7,146.66,35.04204]
[1746436100396,6.8167,146.69,146.66,35.04204]
[1746436102586,6.8172,146.68,146.66,28.22414]
[1746436102993,6.8172,146.68,146.66,26.19024]
[1746436103199,6.8176,146.67,146.66,24.05314]
[1746436103394,6.8176,146.67,146.66,0.25314]
[1746436103796,6.819,146.64,146.63,8.23]
[1746436104495,6.8195,146.63,146.62,1.0]
[1746436104693,23.8,146.65,146.55,6.8231]
[1746436104895,6.8221,146.58,146.54,23.8]
[1746436105494,6.8216,146.59,146.54,23.8]
[1746436105896,6.8216,146.59,146.54,31.4034]
[1746436106199,30.621,146.6,146.54,31.4034]
[1746436106803,30.621,146.6,146.55,6.823]
[1746436108005,30.621,146.6,146.56,6.8226]
[1746436109609,6.8214,146.59,146.56,6.8226]
[1746436113711,30.6211,146.6,146.57,6.8222]
[1746436114707,23.8,146.6,146.58,6.8217]
[1746436121419,30.6209,146.6,146.58,6.8217]
[1746436123424,23.8,146.6,146.58,6.8217]
[1746436125422,30.6209,146.6,146.57,7.6021]
[1746436125623,23.8,146.6,146.57,0.78]
[1746436126226,6.8217,146.59,146.57,0.78]
[1746436126715,23.8,146.6,146.57,0.78]
[1746436128220,6.8218,146.58,146.57,0.78]
[1746436130026,6.8216,146.59,146.57,0.78]
[1746436140326,23.8,146.6,146.53,35.4177]
[1746436140527,23.8,146.6,146.53,40.54917503]
[1746436140720,23.8,146.6,146.57,6.822]
[1746436140922,30.6209,146.6,146.57,6.822]
[1746436141531,6.8214,146.59,146.57,6.822]
[1746436143328,30.6212,146.6,146.57,6.822]
[1746436143932,30.6212,146.6,146.57,7.602]
[1746436145727,23.8,146.6,146.57,0.78]
[1746436145932,23.86,146.63,146.57,0.78]
[1746436146434,6.8202,146.62,146.59,6.8211]
[1746436147335,6.8205,146.61,146.58,8.8928]
[1746436148033,6.8205,146.61,146.58,2.071]
[1746436149133,23.86,146.63,146.58,2.071]
[1746436149433,6.821,146.6,146.58,2.071]
[1746436150529,6.8214,146.59,146.57,0.78]
[1746436150731,23.86,146.63,146.57,0.78]
[1746436151632,540.34,146.66,146.59,6.8211]
[1746436151829,23.82,146.65,146.59,6.8211]
[1746436152233,6.8197,146.63,146.59,6.8211]
[1746436152937,6.8197,146.63,146.6,6.8208]
[1746436153336,6.8202,146.62,146.57,26.6531]
[1746436153537,6.8202,146.62,146.59,6.8211]
[1746436153738,23.82,146.65,146.57,26.6531]
[1746436154239,6.8197,146.63,146.6,6.8209]
[1746436155838,23.82,146.65,146.59,5.12929557]
[1746436156139,23.82,146.65,146.57,26.6531]
[1746436156140,23.82,146.68,146.6,7.17898239]
[1746436156337,6.8183,146.66,146.63,6.8192]
[1746436157042,6.8178,146.67,146.64,6.819]
[1746436159737,23.8,146.71,146.63,9.04]
[1746436159935,23.8,146.71,146.63,16.13198239]
[1746436160441,23.8,146.71,146.67,6.8176]
[1746436161037,6.8165,146.7,146.67,6.8176]
[1746436162341,23.8,146.71,146.63,9.04]
[1746436163037,2.0756,146.7,146.63,9.04]
[1746436163930,6.8188,146.65,146.63,9.04]
[1746436167245,6.819,146.64,146.63,9.04]
[1746436167743,6.819,146.64,146.62,0.78]
[1746436172549,6.8188,146.65,146.62,0.78]
[1746436172948,23.8,146.67,146.62,0.78]
[1746436173247,6.8194,146.64,146.62,0.78]
[1746436174249,6.8195,146.63,146.62,0.78]
[1746436177949,30.6195,146.63,146.62,0.78]
[1746436192159,30.6195,146.63,146.6,11.16]
[1746436192660,6.82,146.62,146.6,11.16]
[1746436194358,6.82,146.62,146.6,1.0]
[1746436200170,6.8204,146.61,146.6,1.0]
[1746436208287,23.8,146.63,146.6,1.0]
[1746436209084,6.8203,146.62,146.6,1.0]
[1746436212686,6.8204,146.61,146.6,1.0]
[1746436213290,6.8201,146.62,146.6,1.0]
[1746436214289,6.8204,146.61,146.6,1.0]
[1746436214888,5.12988284,146.62,146.5,25.9346]
[1746436215089,8.16258284,146.62,146.5,25.9346]
[1746436215394,6.8237,146.54,146.51,6.8249]
[1746436217494,6.8237,146.54,146.5,32.76]
[1746436217694,6.8243,146.53,146.5,32.76]
[1746436219094,6.8243,146.53,146.51,1.0]
[1746436219894,6.8246,146.52,146.51,1.0]
[1746436222189,23.82,146.56,146.51,1.0]
[1746436222393,23.82,146.56,146.51,7.8251]
[1746436222898,6.8244,146.53,146.51,7.8251]
[1746436223093,23.82,146.56,146.51,1.0]
[1746436223896,23.82,146.56,146.51,7.825]
[1746436224096,6.824,146.54,146.51,7.825]
[1746436225598,6.8234,146.55,146.52,6.8245]
[1746436226600,6.8238,146.54,146.52,6.8245]
[1746436227601,6.8234,146.55,146.53,6.8241]
[1746436227902,6.8234,146.55,146.51,1.0]
[1746436228199,6.8234,146.55,146.52,6.8245]
[1746436229801,6.8237,146.54,146.52,6.8245]
[1746436230001,6.8237,146.54,146.52,10.11084463]
[1746436231902,6.8234,146.55,146.52,10.11084463]
[1746436236299,6.8234,146.55,146.53,6.8241]
[1746436238406,6.8234,146.55,146.52,10.11074463]
[1746436243208,6.8237,146.54,146.52,10.11074463]
[1746436244310,6.8235,146.55,146.52,10.11074463]
[1746436246306,23.82,146.56,146.52,3.28634463]
[1746436246609,23.84,146.59,146.54,3.28634463]
[1746436246808,23.84,146.59,146.57,3.28634463]
[1746436247006,564.26,146.62,146.57,3.28634463]
[1746436247202,23.84,146.62,146.57,3.28634463]
[1746436247709,6.8207,146.61,146.58,6.8216]
[1746436247907,23.84,146.62,146.58,6.8216]
[1746436248803,6.8205,146.61,146.58,6.8216]
[1746436249411,6.8205,146.61,146.59,10.10764463]
[1746436250509,6.8205,146.61,146.59,3.28634463]
[1746436255611,6.8209,146.6,146.59,3.28634463]
[1746436256108,23.84,146.63,146.59,3.28634463]
[1746436257119,6.8202,146.62,146.59,10.10724463]
[1746436257813,23.84,146.63,146.59,3.28634463]
[1746436260217,27.12634463,146.63,146.55,6.0928]
[1746436260405,3.28634463,146.61,146.55,2.1424]
[1746436260714,6.8225,146.57,146.55,2.1424]
[1746436261614,6.8221,146.58,146.55,2.1424]
[1746436261912,23.84,146.63,146.55,2.1424]
[1746436262411,6.8205,146.61,146.56,9.09]
[1746436262611,23.84,146.63,146.56,9.09]
[1746436263015,6.8207,146.61,146.58,6.8218]
[1746436263513,6.8209,146.6,146.57,6.822]
[1746436267421,6.8209,146.6,146.58,6.8217]
[1746436270528,23.84,146.63,146.59,6.8214]
[1746436270824,23.84,146.63,146.56,9.09]
[1746436271618,6.8202,146.62,146.6,6.8206]
[1746436272424,6.8205,146.61,146.59,6.8211]
[1746436273225,6.821,146.6,146.56,9.09]
[1746436273426,23.84,146.63,146.56,9.09]
[1746436273923,23.84,146.63,146.56,15.9124]
[1746436274823,6.8214,146.59,146.56,15.9124]
[1746436275828,6.8221,146.58,146.56,9.09]
[1746436277230,6.8223,146.57,146.56,9.09]
[1746436277631,23.88,146.59,146.51,30.01278232]
[1746436277829,23.88,146.59,146.53,6.8239]
[1746436278531,6.8225,146.57,146.53,6.8239]
[1746436279334,6.8225,146.57,146.54,6.8237]
[1746436280827,6.8228,146.56,146.53,6.824]
[1746436281033,6.8228,146.56,146.53,18.684]
[1746436281431,6.8228,146.56,146.53,19.684]
[1746436284937,6.8228,146.56,146.54,6.8236]
[1746436287545,6.8225,146.57,146.54,6.8236]
[1746436287846,6.8225,146.57,146.54,10.10911683]
[1746436291847,23.88,146.59,146.54,3.28551683]
[1746436293252,6.8227,146.57,146.54,10.10921683]
[1746436299654,6.8221,146.58,146.55,6.8232]
[1746436299954,6.8221,146.58,146.56,3.28551683]
[1746436306857,30.7015,146.59,146.56,10.10801683]
[1746436307562,6.822,146.58,146.56,10.10801683]
[1746436308159,6.822,146.58,146.56,3.28551683]
[1746436313362,6.8223,146.57,146.56,3.28551683]
[1746436315862,6.8228,146.56,146.54,3.28551683]
[1746436316162,23.88,146.59,146.54,3.28551683]
[1746436316364,6.8232,146.55,146.54,3.28551683]
[1746436318168,6.823,146.56,146.54,3.28551683]
[1746436319060,6.823,146.56,146.54,10.10911683]
[1746436319260,6.8221,146.58,146.54,3.28551683]
[1746436319564,23.82,146.62,146.56,3.28551683]
[1746436319766,6.8212,146.6,146.57,6.8221]
[1746436321767,6.8212,146.6,146.56,10.10801683]
[1746436322366,6.8212,146.6,146.56,3.28551683]
[1746436322667,23.82,146.62,146.58,3.28551683]
[1746436322871,23.82,146.65,146.6,3.28551683]
[1746436323166,23.82,146.65,146.6,10.10631683]
[1746436324364,6.8199,146.63,146.6,10.10631683]
[1746436324667,27.10551683,146.65,146.59,6.8211]
[1746436325068,6.8202,146.62,146.59,6.8211]
[1746436325869,6.8202,146.62,146.59,18.6311]
[1746436326769,27.10551683,146.65,146.59,11.81]
[1746436326971,3.28551683,146.63,146.59,11.81]
[1746436327270,6.8209,146.6,146.59,11.81]
[1746436331472,6.823,146.56,146.53,7.824]
[1746436331668,23.82,146.61,146.53,1.0]
[1746436331971,6.8232,146.55,146.53,1.0]
[1746436332572,6.823,146.56,146.53,1.0]
[1746436333178,6.823,146.56,146.53,7.824]
[1746436333575,6.823,146.56,146.53,1.0]
[1746436333776,6.8234,146.55,146.53,1.0]
[1746436337978,6.8237,146.54,146.53,1.0]
[1746436339077,6.8233,146.55,146.53,1.0]
[1746436339478,23.82,146.57,146.53,1.0]
[1746436342879,6.8235,146.55,146.53,1.0]
[1746436346177,6.8235,146.55,146.53,7.8241]
[1746436346383,6.823,146.56,146.53,7.8241]
[1746436347382,6.8232,146.55,146.53,7.8241]
[1746436348478,30.6425,146.57,146.53,1.0]
[1746436348677,23.82,146.57,146.53,1.0]
[1746436349680,23.82,146.57,146.53,7.8239]
[1746436349881,23.82,146.57,146.53,11.10958975]
[1746436350981,6.8228,146.56,146.53,11.10958975]
[1746436352384,6.8228,146.56,146.54,6.8235]
[1746436352582,23.82,146.6,146.55,3.28568975]
[1746436352779,23.82,146.6,146.53,26.8235]
[1746436352780,23.82,146.6,146.57,3.28568975]
[1746436352979,30.6412,146.6,146.57,10.10768975]
[1746436353683,30.6412,146.6,146.57,6.822]
[1746436354185,6.8215,146.59,146.57,6.822]
[1746436354388,6.8215,146.59,146.56,6.8225]
[1746436354580,6.8215,146.59,146.54,9.1085303]
[1746436358187,6.8215,146.59,146.57,6.8223]
[1746436360491,6.8218,146.58,146.56,6.8226]
[1746436360687,23.82,146.6,146.54,3.9774]
[1746436360886,23.82,146.6,146.54,2.0101]
[1746436361390,6.8225,146.57,146.55,6.8229]
[1746436361793,23.82,146.6,146.55,6.8229]
[1746436361986,6.822,146.58,146.55,6.8229]
[1746436362186,23.82,146.6,146.56,6.8227]
[1746436363291,6.8216,146.59,146.56,6.8227]
[1746436365993,6.8216,146.59,146.57,6.8222]
[1746436367593,6.8216,146.59,146.56,6.8225]
[1746436369895,6.8216,146.59,146.55,6.823]
[1746436370095,6.8219,146.58,146.55,6.823]
[1746436370395,23.82,146.6,146.54,2.0101]
[1746436370598,6.8217,146.59,146.56,6.8227]
[1746436370995,6.8219,146.58,146.55,6.823]
[1746436371395,23.82,146.6,146.54,2.0101]
[1746436371696,6.8217,146.59,146.56,6.8227]
[1746436372193,6.8214,146.59,146.56,6.8227]
[1746436372592,23.82,146.6,146.56,6.8227]
[1746436372798,6.822,146.58,146.55,6.823]
[1746436373396,23.82,146.6,146.53,10.39]
[1746436373700,28.9511303,146.6,146.53,10.39]
[1746436373889,6.8237,146.54,146.53,10.39]
[1746436374295,6.8237,146.54,146.53,1.0]
[1746436385919,27.10772724,146.55,146.51,1.0]
[1746436386213,3.28772724,146.52,146.51,1.0]
[1746436387217,10.11232724,146.52,146.51,1.0]
[1746436387716,6.8246,146.52,146.51,1.0]
[1746436403927,6.8243,146.53,146.51,1.0]
[1746436404321,23.82,146.55,146.51,1.0]
[1746436405630,6.8246,146.52,146.51,1.0]
[1746436411937,30.6446,146.52,146.51,1.0]
[1746436417136,30.64,146.52,146.41,0.5]
[1746436417339,3.29175703,146.46,146.41,2.648]
[1746436417841,23.82,146.47,146.41,2.648]
[1746436419740,6.8288,146.43,146.41,2.648]
[1746436422237,6.8293,146.42,146.41,2.648]
[1746436437939,23.82,146.47,146.41,2.648]
[1746436438650,6.8286,146.44,146.41,9.4775]
[1746436443150,6.8281,146.45,146.42,6.8291]
[1746436444656,6.8285,146.44,146.41,9.4775]
[1746436445054,6.8285,146.44,146.41,2.648]
[1746436445354,6.8285,146.44,146.41,9.4775]
[1746436449252,6.8285,146.44,146.41,2.648]
[1746436449551,6.8288,146.43,146.41,2.648]
[1746436449755,3.29123942,146.42,146.41,0.5]
[1746436449950,10.12053942,146.42,146.41,0.5]
[1746436458260,23.9,146.43,146.41,0.5]
[1746436458659,3.29123942,146.44,146.41,0.5]
[1746436458859,3.29123942,146.44,146.41,7.3295]
[1746436461470,27.19123942,146.46,146.41,0.5]
[1746436461973,34.01893942,146.46,146.42,6.829]
[1746436462773,34.01893942,146.46,146.41,7.3296]
[1746436463172,6.8279,146.45,146.41,7.3296]
[1746436464674,6.8284,146.44,146.41,7.3296]
[1746436466574,6.8284,146.44,146.41,0.5]
[1746436466873,6.829,146.43,146.41,0.5]
[1746436467572,6.829,146.43,146.41,7.3297]
[1746436467772,6.8286,146.44,146.41,7.3297]
[1746436468774,6.8288,146.43,146.41,7.3297]
[1746436469872,6.8288,146.43,146.41,0.5]
[1746436470075,6.8293,146.42,146.41,0.5]
[1746436472775,6.829,146.43,146.41,0.5]
[1746436474378,6.8293,146.42,146.41,0.5]
[1746436475778,6.8291,146.43,146.41,0.5]
[1746436480680,6.8293,146.42,146.41,0.5]
[1746436505199,27.19123942,146.46,146.41,0.5]
[1746436505893,3.29123942,146.44,146.41,0.5]
[1746436507192,6.8293,146.42,146.41,0.5]
[1746436512393,6.8307,146.39,146.38,7.99]
[1746436512790,27.13123942,146.42,146.38,7.99]
[1746436512998,6.8305,146.4,146.38,7.99]
[1746436513902,6.8307,146.39,146.38,7.99]
[1746436515101,27.13123942,146.42,146.38,7.99]
[1746436515600,6.83,146.41,146.38,14.8209]
[1746436515897,23.84,146.42,146.38,7.99]
[1746436516294,30.6695,146.42,146.39,6.8304]
[1746436518203,6.8298,146.41,146.39,6.8304]
[1746436520408,6.8298,146.41,146.38,14.8209]
[1746436521807,3.29123942,146.42,146.38,7.99]
[1746436522309,6.8298,146.41,146.38,7.99]
[1746436522501,6.8298,146.41,146.38,14.8211]
[1746436526510,6.8303,146.4,146.38,7.99]
[1746436527111,6.8303,146.4,146.38,14.8211]
[1746436527913,6.8303,146.4,146.38,8.3311]
[1746436528109,6.83,146.41,146.38,8.3311]
[1746436529616,6.8302,146.4,146.38,8.3311]
[1746436530315,6.83,146.41,146.38,8.3309]
[1746436531215,6.83,146.41,146.38,14.8309]
[1746436532417,6.8302,146.4,146.38,14.8309]
[1746436534117,6.8302,146.4,146.38,8.0]
[1746436535117,6.8302,146.4,146.38,14.8311]
[1746436535313,6.83,146.41,146.38,14.8311]
[1746436536518,23.84,146.44,146.4,6.83]
[1746436536915,6.829,146.43,146.4,6.83]
[1746436537119,6.829,146.43,146.41,6.8297]
[1746436537619,6.829,146.43,146.4,6.83]
[1746436538422,23.84,146.44,146.41,3.29123942]
[1746436538929,23.84,146.44,146.42,6.8291]